fUST/lending_fUST_20241115
["ID","MTS","AMOUNT","RATE_DAILY","PERIOD"]
[342263669,1731681035146,-500.0,0.00013698,2]
[342263670,1731681035156,-516.94811854,0.00013698,2]
[342263672,1731681035164,-500.0,0.00013698,2]
[342263673,1731681035173,-520.69060382,0.00013698,2]
[342263674,1731681035183,-500.0,0.00013698,2]
[342263675,1731681035191,-500.0,0.00013698,2]
[342263676,1731681035205,-610.56,0.00013698,2]
[342263677,1731681035218,-500.0,0.00013698,2]
[342263678,1731681035227,-500.0,0.00013698,2]
[342263679,1731681035236,-500.6166219,0.00013698,2]
[342263680,1731681035245,-514.25,0.00013698,2]
[342263681,1731681035255,-500.0,0.00013698,2]
[342263682,1731681035264,-500.0,0.00013698,2]
[342263683,1731681035273,-500.0,0.00013698,2]
[342263684,1731681035282,-500.0,0.00013698,2]
[342263685,1731681035291,-500.0,0.00013698,2]
[342263686,1731681035447,-500.0,0.00013698,2]
[342263687,1731681035460,-500.0,0.00013698,2]
[342263688,1731681035469,-500.0,0.00013698,2]
[342263689,1731681035478,-500.0,0.00013698,2]
[342263690,1731681035487,-413.56193425,0.00013698,2]
[342263691,1731681035496,-500.0,0.00013698,2]
[342263692,1731681035505,-501.25837561,0.00013698,2]
[342263693,1731681035514,-229.60557864,0.00013698,2]
[342263694,1731681035523,-475.3980156,0.00013698,2]
[342263695,1731681035532,-500.0,0.00013698,2]
[342263696,1731681035541,-503.81360001,0.00013698,2]
[342263697,1731681035550,-504.40599643,0.00013698,2]
[342263698,1731681035560,-500.0,0.00013698,2]
[342263699,1731681035569,-500.0,0.00013698,2]
[342263700,1731681035579,-500.96276077,0.00013698,2]
[342263701,1731681035589,-500.0,0.00013698,2]
[342263702,1731681035598,-500.0,0.00013698,2]
[342263703,1731681035608,-500.0,0.00013698,2]
[342263704,1731681035617,-500.0,0.00013698,2]
[342263705,1731681035627,-599.42888934,0.00013698,2]
[342263706,1731681035636,-500.0,0.00013698,2]
[342263707,1731681035646,-500.0,0.00013698,2]
[342263708,1731681035655,-500.0,0.00013698,2]
[342263709,1731681035665,-501.57835297,0.00013698,2]
[342263710,1731681035674,-500.0,0.00013698,2]
[342263711,1731681035683,-312.2088689,0.00013698,2]
[342263712,1731681035693,-500.0,0.00013698,2]
[342263713,1731681035702,-500.0,0.00013698,2]
[342263714,1731681035717,-500.0,0.00013698,2]
[342263715,1731681035726,-500.0,0.00013698,2]
[342263716,1731681035735,-500.0,0.00013698,2]
[342263717,1731681035744,-500.0,0.00013698,2]
[342263718,1731681035755,-500.0,0.00013698,2]
[342263719,1731681035764,-500.0,0.00013698,2]
[342263720,1731681035773,-2510.18,0.00013698,2]
[342263721,1731681035782,-500.0,0.00013698,2]
[342263722,1731681035793,-503.80459437,0.00013698,2]
[342263723,1731681035803,-500.13762564,0.00013698,2]
[342263724,1731681035813,-500.0,0.00013698,2]
[342263725,1731681035823,-500.0,0.00013698,2]
[342263726,1731681035832,-500.0,0.00013698,2]
[342263727,1731681035841,-500.0,0.00013698,2]
[342263728,1731681035850,-500.0,0.00013698,2]
[342263729,1731681035859,-500.0,0.00013698,2]
[342263730,1731681035868,-500.0,0.00013698,2]
[342263731,1731681035877,-500.0,0.00013698,2]
[342263732,1731681035886,-500.0,0.00013698,2]
[342263733,1731681035895,-500.0,0.00013698,2]
[342263734,1731681035906,-501.13198269,0.00013698,2]
[342263735,1731681035916,-500.0,0.00013698,2]
[342263736,1731681035925,-500.0,0.00013698,2]
[342263737,1731681035934,-500.0,0.00013698,2]
[342263738,1731681035943,-501.32180776,0.00013698,2]
[342263739,1731681035952,-500.0,0.00013698,2]
[342263740,1731681035964,-500.0,0.00013698,2]
[342263741,1731681035973,-500.0,0.00013698,2]
[342263742,1731681035982,-500.0,0.00013698,2]
[342263743,1731681035992,-500.0,0.00013698,2]
[342263744,1731681036001,-500.0,0.00013698,2]
[342263745,1731681036010,-599.64183219,0.00013698,2]
[342263746,1731681036020,-500.0,0.00013698,2]
[342263747,1731681036029,-500.0,0.00013698,2]
[342263748,1731681036038,-500.0,0.00013698,2]
[342263749,1731681036047,-500.0,0.00013698,2]
[342263750,1731681036056,-500.0,0.00013698,2]
[342263751,1731681036066,-500.0,0.00013698,2]
[342263752,1731681036075,-500.0,0.00013698,2]
[342263753,1731681036084,-500.0,0.00013698,2]
[342263754,1731681036094,-500.0,0.00013698,2]
[342263755,1731681036103,-500.0,0.00013698,2]
[342263756,1731681036112,-500.0,0.00013698,2]
[342263757,1731681036121,-500.29959537,0.00013698,2]
[342263758,1731681036131,-500.0,0.00013698,2]
[342263759,1731681036140,-500.0,0.00013698,2]
[342263760,1731681036149,-500.0,0.00013698,2]
[342263761,1731681036158,-500.0,0.00013698,2]
[342263762,1731681036167,-500.0,0.00013698,2]
[342263763,1731681036177,-500.0,0.00013698,2]
[342263764,1731681036186,-500.0,0.00013698,2]
[342263765,1731681036196,-500.0,0.00013698,2]
[342263766,1731681036205,-500.0,0.00013698,2]
[342263767,1731681036219,-200.21183766,0.00013698,2]
[342263768,1731681036229,-584.27901374,0.00013698,2]
[342263769,1731681036238,-500.0,0.00013698,2]
[342263770,1731681036248,-500.37833437,0.00013698,2]
[342263771,1731681036257,-500.0,0.00013698,2]
[342263772,1731681036267,-500.0,0.00013698,2]
[342263773,1731681036277,-500.0,0.00013698,2]
[342263774,1731681036287,-500.0,0.00013698,2]
[342263775,1731681036296,-500.0,0.00013698,2]
[342263776,1731681036306,-500.0,0.00013698,2]
[342263777,1731681036316,-500.0,0.00013698,2]
[342263778,1731681036325,-501.87555908,0.00013698,2]
[342263779,1731681036335,-500.0,0.00013698,2]
[342263780,1731681036345,-507.44057253,0.00013698,2]
[342263781,1731681036354,-500.0,0.00013698,2]
[342263782,1731681036363,-242.48804072,0.00013698,2]
[342263783,1731681036373,-500.0,0.00013698,2]
[342263784,1731681036383,-504.64329335,0.00013698,2]
[342263785,1731681036392,-500.0,0.00013698,2]
[342263786,1731681036401,-527.53262059,0.00013698,2]
[342263787,1731681036410,-501.82154968,0.00013698,2]
[342263788,1731681036419,-500.0,0.00013698,2]
[342263789,1731681036429,-500.0,0.00013698,2]
[342263790,1731681036438,-500.0,0.00013698,2]
[342263791,1731681036447,-500.86447645,0.00013698,2]
[342263792,1731681036461,-500.0,0.00013698,2]
[342263793,1731681036470,-502.39943099,0.00013698,2]
[342263794,1731681036479,-506.6361738,0.00013698,2]
[342263795,1731681036489,-500.0,0.00013698,2]
[342263796,1731681036498,-507.0333799,0.00013698,2]
[342263797,1731681036508,-500.0,0.00013698,2]
[342263798,1731681036517,-501.75643257,0.00013698,2]
[342263799,1731681036526,-503.64147484,0.00013698,2]
[342263800,1731681036536,-504.5009296,0.00013698,2]
[342263801,1731681036546,-500.0,0.00013698,2]
[342263802,1731681036556,-500.0,0.00013698,2]
[342263803,1731681036567,-500.46216386,0.00013698,2]
[342263804,1731681036578,-500.0,0.00013698,2]
[342263805,1731681036589,-500.0,0.00013698,2]
[342263806,1731681036601,-257.48542944,0.00013698,2]
[342263807,1731681036612,-500.0,0.00013698,2]
[342263808,1731681036622,-500.0,0.00013698,2]
[342263809,1731681036632,-500.0,0.00013698,2]
[342263810,1731681036643,-500.0,0.00013698,2]
[342263811,1731681036653,-302.304529,0.00013698,2]
[342263812,1731681036663,-500.0,0.00013698,2]
[342263813,1731681036673,-500.0,0.00013698,2]
[342263814,1731681036684,-511.08797148,0.00013698,2]
[342263815,1731681036694,-500.0,0.00013698,2]
[342263816,1731681036710,-500.0,0.00013698,2]
[342263817,1731681036724,-500.0,0.00013698,2]
[342263818,1731681036735,-500.0,0.00013698,2]
[342263819,1731681036744,-273.48629224,0.00013698,2]
[342263820,1731681036755,-500.0,0.00013698,2]
[342263821,1731681036765,-500.0,0.00013698,2]
[342263822,1731681036775,-500.0,0.00013698,2]
[342263823,1731681036785,-631.3655551,0.00013698,2]
[342263824,1731681036796,-575.76,0.00013698,2]
[342263825,1731681036806,-500.0,0.00013698,2]
[342263826,1731681036816,-756.94,0.00013698,2]
[342263827,1731681036826,-500.0,0.00013698,2]
[342263828,1731681036835,-500.0,0.00013698,2]
[342263829,1731681036845,-500.0,0.00013698,2]
[342263830,1731681036854,-500.0,0.00013698,2]
[342263831,1731681036865,-500.0,0.00013698,2]
[342263832,1731681036875,-500.0,0.00013698,2]
[342263833,1731681036885,-500.0,0.00013698,2]
[342263834,1731681036895,-500.0,0.00013698,2]
[342263835,1731681036905,-500.0,0.00013698,2]
[342263836,1731681036916,-500.0,0.00013698,2]
[342263837,1731681036926,-1530.25,0.00013698,2]
[342263838,1731681036935,-500.0,0.00013698,2]
[342263839,1731681036945,-500.0,0.00013698,2]
[342263840,1731681036954,-598.05,0.00013698,2]
[342263841,1731681036970,-220.23705151,0.00013698,2]
[342263842,1731681036980,-500.0,0.00013698,2]
[342263843,1731681036989,-500.0,0.00013698,2]
[342263844,1731681036999,-500.0,0.00013698,2]
[342263845,1731681037008,-500.0,0.00013698,2]
[342263846,1731681037018,-513.037429,0.00013698,2]
[342263847,1731681037028,-500.0,0.00013698,2]
[342263848,1731681037037,-500.0,0.00013698,2]
[342263849,1731681037047,-500.0,0.00013698,2]
[342263850,1731681037057,-500.0,0.00013698,2]
[342263851,1731681037067,-500.0,0.00013698,2]
[342263852,1731681037077,-500.0,0.00013698,2]
[342263853,1731681037087,-500.0,0.00013698,2]
[342263854,1731681037097,-533.55541129,0.00013698,2]
[342263855,1731681037107,-2170.78,0.00013698,2]
[342263856,1731681037118,-500.0,0.00013698,2]
[342263857,1731681037128,-500.0,0.00013698,2]
[342263858,1731681037137,-500.0,0.00013698,2]
[342263859,1731681037147,-621.89756307,0.00013698,2]
[342263860,1731681037158,-500.0,0.00013698,2]
[342263861,1731681037168,-500.0,0.00013698,2]
[342263862,1731681037178,-1218.16,0.00013698,2]
[342263863,1731681037187,-500.0,0.00013698,2]
[342263864,1731681037197,-500.0,0.00013698,2]
[342263865,1731681037212,-500.0,0.00013698,2]
[342263866,1731681037222,-500.0,0.00013698,2]
[342263867,1731681037231,-500.0,0.00013698,2]
[342263868,1731681037241,-500.0,0.00013698,2]
[342263869,1731681037251,-500.0,0.00013698,2]
[342263870,1731681037260,-1005.48,0.00013698,2]
[342263871,1731681037270,-500.0,0.00013698,2]
[342263872,1731681037279,-1507.36,0.00013698,2]
[342263873,1731681037289,-645.89,0.00013698,2]
[342263874,1731681037299,-500.0,0.00013698,2]
[342263875,1731681037309,-500.0,0.00013698,2]
[342263876,1731681037319,-500.0,0.00013698,2]
[342263877,1731681037328,-500.0,0.00013698,2]
[342263878,1731681037337,-500.0,0.00013698,2]
[342263879,1731681037347,-500.0,0.00013698,2]
[342263880,1731681037356,-500.0,0.00013698,2]
[342263881,1731681037365,-500.0,0.00013698,2]
[342263882,1731681037375,-500.0,0.00013698,2]
[342263883,1731681037384,-500.0,0.00013698,2]
[342263884,1731681037393,-500.0,0.00013698,2]
[342263885,1731681037402,-572.01,0.00013698,2]
[342263886,1731681037412,-500.0,0.00013698,2]
[342263887,1731681037422,-525.42,0.00013698,2]
[342263888,1731681037431,-500.0,0.00013698,2]
[342263889,1731681037441,-500.0,0.00013698,2]
[342263890,1731681037450,-500.0,0.00013698,2]
[342263891,1731681037463,-500.0,0.00013698,2]
[342263892,1731681037472,-500.0,0.00013698,2]
[342263893,1731681037482,-5993.9,0.00013698,2]
[342263894,1731681037492,-7281.34,0.00013698,2]
[342263895,1731681037501,-500.0,0.00013698,2]
[342263896,1731681037511,-500.0,0.00013698,2]
[342263897,1731681037521,-310.14516488,0.00013698,2]
[342263898,1731681037531,-500.0,0.00013698,2]
[342263899,1731681037541,-536.91,0.00013698,2]
[342263900,1731681037551,-500.0,0.00013698,2]
[342263901,1731681037561,-500.0,0.00013698,2]
[342263902,1731681037570,-500.0,0.00013698,2]
[342263903,1731681037580,-500.0,0.00013698,2]
[342263904,1731681037590,-971.12,0.00013698,2]
[342263905,1731681037600,-500.0,0.00013698,2]
[342263906,1731681037610,-500.0,0.00013698,2]
[342263907,1731681037619,-292.85648473,0.00013698,2]
[342263908,1731681037629,-574.614174,0.00013699,2]
[342263909,1731681037639,-328.121991,0.00013699,2]
[342263910,1731681037648,-500.0,0.00013699,2]
[342263911,1731681037658,-345.32914179,0.00013699,2]
[342263913,1731681037668,-170.37390952,0.00013872,2]
[342263914,1731681037677,-500.0,0.00013969,2]
[342263915,1731681037687,-194.795,0.0001397,2]
[342263916,1731681037697,-500.0,0.0001397,2]
[342263917,1731681037710,-176.1979828,0.00013971,2]
[342263918,1731681037724,-421.49981525,0.00013971,2]
[342263919,1731681037733,-500.0,0.00013971,2]
[342263920,1731681037743,-500.0,0.00013971,2]
[342263921,1731681037753,-500.0,0.00013971,2]
[342263922,1731681037762,-500.0,0.00013971,2]
[342263923,1731681037772,-500.0,0.00013971,2]
[342263924,1731681037781,-328.21874519,0.00013971,2]
[342263925,1731681037793,-500.0,0.00013972,2]
[342263926,1731681037803,-151.0,0.00013972,2]
[342263927,1731681037813,-151.0,0.00013972,2]
[342263928,1731681037824,-500.0,0.00013972,2]
[342263929,1731681037833,-500.0,0.00013972,2]
[342263930,1731681037843,-634.35504128,0.00013972,2]
[342263931,1731681037853,-500.0,0.00013972,2]
[342263932,1731681037863,-500.0,0.00013972,2]
[342263933,1731681037872,-500.0,0.00013972,2]
[342263934,1731681037882,-500.0,0.00013972,2]
[342263935,1731681037892,-529.13,0.00013972,2]
[342263936,1731681037901,-597.54,0.00013972,2]
[342263937,1731681037911,-500.0,0.00013972,2]
[342263938,1731681037920,-604.58,0.00013972,2]
[342263939,1731681037930,-500.0,0.00013972,2]
[342263940,1731681037940,-500.0,0.00013972,2]
[342263941,1731681037950,-500.0,0.00013972,2]
[342263943,1731681037964,-500.0,0.00013972,2]
[342263945,1731681037974,-500.0,0.00013972,2]
[342263946,1731681037985,-500.0,0.00013972,2]
[342263948,1731681037995,-500.0,0.00013972,2]
[342263949,1731681038005,-500.0,0.00013972,2]
[342263950,1731681038014,-500.0,0.00013972,2]
[342263951,1731681038024,-500.0,0.00013972,2]
[342263952,1731681038034,-500.0,0.00013972,2]
[342263953,1731681038043,-500.0,0.00013972,2]
[342263954,1731681038053,-500.0,0.00013972,2]
[342263955,1731681038062,-467.21968411,0.00013972,2]
[342263956,1731681038072,-500.0,0.00013972,2]
[342263957,1731681038081,-500.0,0.00013972,2]
[342263958,1731681038090,-500.0,0.00013972,2]
[342263959,1731681038099,-577.83,0.00013972,2]
[342263960,1731681038109,-500.0,0.00013972,2]
[342263961,1731681038119,-500.0,0.00013972,2]
[342263962,1731681038129,-500.0,0.00013972,2]
[342263963,1731681038138,-500.0,0.00013972,2]
[342263965,1731681038148,-500.0,0.00013972,2]
[342263966,1731681038158,-500.0,0.00013972,2]
[342263967,1731681038168,-500.0,0.00013972,2]
[342263968,1731681038177,-489.92480485,0.00013972,2]
[342263969,1731681038197,-120.63519515,0.00013972,2]
[342263970,1731681038207,-500.0,0.00013972,2]
[342263971,1731681038220,-305.96065436,0.00013972,2]
[342263972,1731681038233,-219.79934564,0.00013972,2]
[342263973,1731681038242,-77.37187719,0.00013972,2]
[342263976,1731681038255,-422.62812281,0.00013972,2]
[342263977,1731681038264,-469.56172974,0.00013972,2]
[342263980,1731681038402,-285.38087681,0.00013698,2]
[342263981,1731681038411,-30.43827026,0.00013972,2]
[342263982,1731681038420,-500.0,0.00013972,2]
[342263983,1731681038430,-355.49085318,0.00013972,2]
[342263984,1731681038442,-144.50914682,0.00013972,2]
[342263985,1731681038451,-500.0,0.00013972,2]
[342263986,1731681038463,-500.0,0.00013972,2]
[342263987,1731681038473,-538.61316371,0.00013972,2]
[342263988,1731681038482,-504.29,0.00013972,2]
[342263989,1731681038491,-423.28558575,0.00013972,2]
[342263990,1731681038501,-603.16015405,0.00013972,2]
[342263991,1731681038510,-500.0,0.00013972,2]
[342263992,1731681038519,-500.0,0.00013972,2]
[342263993,1731681038528,-252.23081324,0.00013972,2]
[342263994,1731681038540,-247.76918676,0.00013972,2]
[342263995,1731681038549,-2510.18,0.00013972,2]
[342263996,1731681038559,-500.0,0.00013972,2]
[342263997,1731681038568,-500.0,0.00013972,2]
[342263998,1731681038577,-500.0,0.00013972,2]
[342263999,1731681038587,-531.35645097,0.00013972,2]
[342264000,1731681038596,-500.0,0.00013972,2]
[342264001,1731681038606,-500.0,0.00013972,2]
[342264002,1731681038615,-500.0,0.00013972,2]
[342264003,1731681038625,-500.0,0.00013972,2]
[342264004,1731681038635,-500.0,0.00013972,2]
[342264005,1731681038763,-500.0,0.00013972,2]
[342264006,1731681038773,-500.0,0.00013972,2]
[342264007,1731681038782,-501.4817952,0.00013972,2]
[342264008,1731681038793,-500.0,0.00013972,2]
[342264009,1731681038802,-328.31600425,0.00013972,2]
[342264010,1731681038812,-500.0,0.00013972,2]
[342264011,1731681038821,-500.0,0.00013972,2]
[342264012,1731681038831,-500.0,0.00013972,2]
[342264013,1731681038840,-535.59050543,0.00013972,2]
[342264014,1731681038850,-502.76603671,0.00013972,2]
[342264015,1731681038859,-500.0,0.00013972,2]
[342264016,1731681038869,-500.0,0.00013972,2]
[342264017,1731681038878,-500.0,0.00013972,2]
[342264018,1731681038888,-503.85,0.00013972,2]
[342264019,1731681038897,-510.29,0.00013972,2]
[342264020,1731681038906,-500.0,0.00013972,2]
[342264021,1731681038916,-500.0,0.00013972,2]
[342264022,1731681038925,-500.0,0.00013972,2]
[342264023,1731681038935,-500.0,0.00013972,2]
[342264024,1731681038944,-500.0,0.00013972,2]
[342264025,1731681038953,-500.0,0.00013972,2]
[342264026,1731681038967,-500.0,0.00013972,2]
[342264027,1731681038976,-151.0,0.00013972,2]
[342264028,1731681038986,-151.0,0.00013972,2]
[342264029,1731681038996,-151.0,0.00013972,2]
[342264030,1731681039005,-151.0,0.00013972,2]
[342264031,1731681039015,-500.0,0.00013972,2]
[342264032,1731681039024,-756.94,0.00013972,2]
[342264033,1731681039034,-500.0,0.00013972,2]
[342264034,1731681039043,-642.8,0.00013972,2]
[342264035,1731681039053,-500.0,0.00013972,2]
[342264036,1731681039063,-500.0,0.00013972,2]
[342264037,1731681039073,-500.0,0.00013972,2]
[342264038,1731681039084,-500.0,0.00013972,2]
[342264039,1731681039094,-500.0,0.00013972,2]
[342264040,1731681039104,-1530.25,0.00013972,2]
[342264041,1731681039114,-500.0,0.00013972,2]
[342264042,1731681039123,-598.05,0.00013972,2]
[342264043,1731681039133,-500.0,0.00013972,2]
[342264044,1731681039143,-500.0,0.00013972,2]
[342264045,1731681039152,-500.0,0.00013972,2]
[342264046,1731681039161,-500.0,0.00013972,2]
[342264047,1731681039170,-500.0,0.00013972,2]
[342264048,1731681039179,-500.0,0.00013972,2]
[342264049,1731681039189,-2170.78,0.00013972,2]
[342264050,1731681039198,-500.0,0.00013972,2]
[342264051,1731681039207,-500.0,0.00013972,2]
[342264052,1731681039219,-1218.16,0.00013972,2]
[342264053,1731681039227,-500.0,0.00013972,2]
[342264054,1731681039237,-500.0,0.00013972,2]
[342264055,1731681039246,-151.0,0.00013972,2]
[342264056,1731681039255,-151.0,0.00013972,2]
[342264057,1731681039265,-500.0,0.00013972,2]
[342264058,1731681039274,-500.0,0.00013972,2]
[342264059,1731681039283,-1005.48,0.00013972,2]
[342264060,1731681039292,-1507.36,0.00013972,2]
[342264061,1731681039301,-645.89,0.00013972,2]
[342264062,1731681039311,-500.0,0.00013972,2]
[342264063,1731681039320,-500.0,0.00013972,2]
[342264064,1731681039329,-500.0,0.00013972,2]
[342264065,1731681039340,-151.0,0.00013972,2]
[342264066,1731681039350,-500.0,0.00013972,2]
[342264067,1731681039359,-500.0,0.00013972,2]
[342264068,1731681039368,-500.0,0.00013972,2]
[342264069,1731681039378,-500.0,0.00013972,2]
[342264070,1731681039387,-513.66925817,0.00013972,2]
[342264071,1731681039397,-500.0,0.00013972,2]
[342264072,1731681039406,-572.01,0.00013972,2]
[342264073,1731681039415,-525.42,0.00013972,2]
[342264074,1731681039425,-151.0,0.00013972,2]
[342264075,1731681039434,-500.0,0.00013972,2]
[342264076,1731681039444,-5993.9,0.00013972,2]
[342264077,1731681039453,-7281.34,0.00013972,2]
[342264078,1731681039466,-500.0,0.00013972,2]
[342264079,1731681039475,-500.0,0.00013972,2]
[342264080,1731681039485,-219.69,0.00013972,2]
[342264081,1731681039494,-536.91,0.00013972,2]
[342264082,1731681039504,-500.0,0.00013972,2]
[342264083,1731681039514,-500.0,0.00013972,2]
[342264084,1731681039523,-971.12,0.00013972,2]
[342264085,1731681039533,-500.0,0.00013972,2]
[342264086,1731681039542,-400.0,0.00013973,2]
[342264087,1731681039552,-1113.0,0.0001402,2]
[342264088,1731681039562,-2387.0,0.0001402,2]
[342264089,1731681039571,-500.0,0.00014069,2]
[342264090,1731681039581,-151.0,0.0001407,2]
[342264091,1731681039591,-500.0,0.00014121,2]
[342264092,1731681039601,-500.0,0.00014245,2]
[342264093,1731681039611,-500.0,0.00014245,2]
[342264094,1731681039621,-332.2561693,0.00014245,2]
[342264095,1731681039631,-150.79035757,0.00014246,2]
[342264096,1731681039640,-151.0,0.00014246,2]
[342264097,1731681039650,-151.0,0.00014246,2]
[342264098,1731681039660,-151.0,0.00014246,2]
[342264099,1731681039669,-500.0,0.00014246,2]
[342264100,1731681039679,-500.0,0.00014246,2]
[342264101,1731681039689,-181.71,0.00014246,2]
[342264102,1731681039699,-500.0,0.00014246,2]
[342264103,1731681039713,-500.0,0.00014246,2]
[342264105,1731681039728,-501.8991592,0.00014246,2]
[342264106,1731681039738,-500.0,0.00014246,2]
[342264107,1731681039748,-500.0,0.00014246,2]
[342264108,1731681039759,-500.0,0.00014246,2]
[342264109,1731681039768,-500.0,0.00014246,2]
[342264110,1731681039777,-288.3,0.00014246,2]
[342264111,1731681039787,-500.0,0.00014246,2]
[342264112,1731681039797,-419.88413268,0.00014246,2]
[342264113,1731681039807,-577.83,0.00014246,2]
[342264114,1731681039817,-429.37106135,0.00014246,2]
[342264115,1731681039827,-281.98521495,0.00014246,2]
[342264116,1731681039837,-500.0,0.00014246,2]
[342264117,1731681039846,-500.0,0.00014246,2]
[342264119,1731681039856,-500.0,0.00014246,2]
[342264120,1731681039865,-610.56,0.00014246,2]
[342264121,1731681039874,-309.23,0.00014246,2]
[342264122,1731681039884,-500.0,0.00014246,2]
[342264123,1731681039893,-500.0,0.00014246,2]
[342264124,1731681039902,-500.0,0.00014246,2]
[342264125,1731681039913,-581.69,0.00014246,2]
[342264126,1731681039923,-500.0,0.00014246,2]
[342264127,1731681039932,-2510.18,0.00014246,2]
[342264128,1731681039942,-310.76493835,0.00014246,2]
[342264129,1731681039951,-500.0,0.00014246,2]
[342264130,1731681039964,-456.35850439,0.00014246,2]
[342264131,1731681039973,-289.92701377,0.00014246,2]
[342264132,1731681039983,-500.0,0.00014246,2]
[342264133,1731681039993,-500.0,0.00014246,2]
[342264134,1731681040002,-500.0,0.00014246,2]
[342264135,1731681040012,-500.0,0.00014246,2]
[342264136,1731681040022,-500.0,0.00014246,2]
[342264137,1731681040032,-500.0,0.00014246,2]
[342264138,1731681040041,-226.7406133,0.00014246,2]
[342264140,1731681040051,-629.54,0.00014246,2]
[342264142,1731681040060,-151.0,0.00014246,2]
[342264143,1731681040069,-195.107689,0.00014246,2]
[342264145,1731681040078,-500.0,0.00014246,2]
[342264146,1731681040088,-756.94,0.00014246,2]
[342264147,1731681040098,-500.0,0.00014246,2]
[342264149,1731681040107,-500.0,0.00014246,2]
[342264151,1731681040117,-263.2,0.00014246,2]
[342264153,1731681040126,-366.96093082,0.00014246,2]
[342264154,1731681040136,-1530.25,0.00014246,2]
[342264155,1731681040145,-598.05,0.00014246,2]
[342264156,1731681040155,-500.0,0.00014246,2]
[342264157,1731681040163,-500.0,0.00014246,2]
[342264158,1731681040172,-2170.78,0.00014246,2]
[342264159,1731681040181,-1218.16,0.00014246,2]
[342264160,1731681040190,-500.0,0.00014246,2]
[342264161,1731681040202,-500.0,0.00014246,2]
[342264162,1731681040216,-151.0,0.00014246,2]
[342264163,1731681040229,-500.0,0.00014246,2]
[342264164,1731681040241,-216.09,0.00014246,2]
[342264165,1731681040253,-1005.48,0.00014246,2]
[342264166,1731681040265,-1507.36,0.00014246,2]
[342264167,1731681040274,-645.89,0.00014246,2]
[342264168,1731681040285,-500.0,0.00014246,2]
[342264169,1731681040297,-500.0,0.00014246,2]
[342264170,1731681040308,-500.0,0.00014246,2]
[342264171,1731681040319,-500.0,0.00014246,2]
[342264172,1731681040330,-497.80562905,0.00014246,2]
[342264173,1731681040341,-500.0,0.00014246,2]
[342264174,1731681040353,-500.0,0.00014246,2]
[342264175,1731681040364,-572.01,0.00014246,2]
[342264176,1731681040375,-525.42,0.00014246,2]
[342264177,1731681040386,-500.0,0.00014246,2]
[342264178,1731681040397,-5993.9,0.00014246,2]
[342264179,1731681040409,-6772.20934895,0.00014246,2]
[342264180,1731681040425,-509.13065105,0.00014246,2]
[342264181,1731681040437,-500.0,0.00014246,2]
[342264182,1731681040448,-500.0,0.00014246,2]
[342264183,1731681040459,-536.91,0.00014246,2]
[342264184,1731681040473,-500.0,0.00014246,2]
[342264185,1731681040484,-577.2,0.00014246,2]
[342264186,1731681040495,-7.60450821,0.00014246,2]